[Event "Titled Tuesday Blitz August 1 Early 2023"]
[White "Priasmoro, Novendra"]
[Black "Saya, Ethan"]
[WhiteFideId "7105029"]
[BlackFideId "26095181"]
[WhiteElo "2785"]
[BlackElo "2582"]
[Result "1-0"]
[Round "3"]
[TimeControl "180+1"]
[Date "2023.08.01"]
[WhiteClock "0:00:03"]
[BlackClock "0:00:02"]
[Board "39"]

1. e4 {[%clk 0:02:58]}  e6 {[%clk 0:02:59]} 2. d4 {[%clk 0:02:57]}  d5 {[%clk 0:02:59]} 3. Nc3 {[%clk 0:02:56]}  Nf6 {[%clk 0:02:59]} 4. e5 {[%clk 0:02:51]}  Nfd7 {[%clk 0:02:59]} 5. f4 {[%clk 0:02:49]}  c5 {[%clk 0:02:58]} 6. Nf3 {[%clk 0:02:49]}  Nc6 {[%clk 0:02:59]} 7. Be3 {[%clk 0:02:46]}  Be7 {[%clk 0:02:59]} 8. Qd2 {[%clk 0:02:44]}  O-O {[%clk 0:02:58]} 9. Ne2 {[%clk 0:02:43]}  cxd4 {[%clk 0:02:27]} 10. Nexd4 {[%clk 0:02:44]}  Nc5 {[%clk 0:02:23]} 11. Bd3 {[%clk 0:02:35]}  Bd7 {[%clk 0:02:18]} 12. O-O {[%clk 0:02:29]}  Rc8 {[%clk 0:02:15]} 13. Kh1 {[%clk 0:02:20]}  Nxd3 {[%clk 0:02:07]} 14. cxd3 {[%clk 0:02:20]}  Nxd4 {[%clk 0:01:26]} 15. Nxd4 {[%clk 0:02:21]}  Qc7 {[%clk 0:01:26]} 16. Rae1 {[%clk 0:02:07]}  Bc5 {[%clk 0:01:16]} 17. Nb3 {[%clk 0:01:56]}  Bxe3 {[%clk 0:01:14]} 18. Qxe3 {[%clk 0:01:56]}  b6 {[%clk 0:01:13]} 19. Nd4 {[%clk 0:01:55]}  Qc5 {[%clk 0:01:07]} 20. a3 {[%clk 0:01:53]}  Qa5 {[%clk 0:00:58]} 21. h4 {[%clk 0:01:49]}  b5 {[%clk 0:00:50]} 22. h5 {[%clk 0:01:48]}  h6 {[%clk 0:00:51]} 23. g4 {[%clk 0:01:44]}  Qd8 {[%clk 0:00:37]} 24. g5 {[%clk 0:01:44]}  Kh8 {[%clk 0:00:36]} 25. Rg1 {[%clk 0:01:44]}  Qe7 {[%clk 0:00:31]} 26. Rg3 {[%clk 0:01:35]}  Rg8 {[%clk 0:00:27]} 27. Reg1 {[%clk 0:01:35]}  a5 {[%clk 0:00:28]} 28. Rg4 {[%clk 0:01:19]}  b4 {[%clk 0:00:25]} 29. Qg3 {[%clk 0:01:19]}  Qf8 {[%clk 0:00:21]} 30. Qh4 {[%clk 0:01:13]}  bxa3 {[%clk 0:00:20]} 31. gxh6 {[%clk 0:01:11]}  Qd8 {[%clk 0:00:14]} 32. hxg7+ {[%clk 0:01:07]}  Kh7 {[%clk 0:00:15]} 33. Qxd8 {[%clk 0:00:48]}  Rcxd8 {[%clk 0:00:15]} 34. bxa3 {[%clk 0:00:49]}  Rb8 {[%clk 0:00:10]} 35. Nf3 {[%clk 0:00:47]}  Be8 {[%clk 0:00:06]} 36. f5 {[%clk 0:00:22]}  exf5 {[%clk 0:00:04]} 37. Rf4 {[%clk 0:00:22]}  Rb3 {[%clk 0:00:02]} 38. Rxf5 {[%clk 0:00:18]}  Rxd3 {[%clk 0:00:02]} 39. Ng5+ {[%clk 0:00:12]}  Kh6 {[%clk 0:00:03]} 40. Rf6+ {[%clk 0:00:11]}  Kxh5 {[%clk 0:00:02]} 41. Nf3 {[%clk 0:00:04]}  Rxf3 {[%clk 0:00:02]} 42. Rxf3 {[%clk 0:00:05]}  Bd7 {[%clk 0:00:02]} 43. Rf6 {[%clk 0:00:03]}  Be6 {[%clk 0:00:01]} 44. Kh2 {[%clk 0:00:03]}  d4 {[%clk 0:00:02]} 45. Rf4 {[%clk 0:00:03]}  Kh6 {[%clk 0:00:02]} 46. Rh4# {[%clk 0:00:03]} 1-0


[Site "https://www.chess.com"]

[Event "Titled Tuesday Blitz August 1 Early 2023"]
[White "Dvirnyy, Danyyil"]
[Black "Ambartsumova, Karina"]
[WhiteFideId "817570"]
[BlackFideId "4166299"]
[WhiteElo "2784"]
[BlackElo "2577"]
[Result "1-0"]
[Round "3"]
[TimeControl "180+1"]
[Date "2023.08.01"]
[WhiteClock "0:00:18"]
[BlackClock "0:00:00"]
[Board "40"]

1. Nf3 {[%clk 0:02:53]}  Nf6 {[%clk 0:02:58]} 2. g3 {[%clk 0:02:54]}  g6 {[%clk 0:02:57]} 3. Bg2 {[%clk 0:02:54]}  Bg7 {[%clk 0:02:57]} 4. O-O {[%clk 0:02:54]}  O-O {[%clk 0:02:58]} 5. c4 {[%clk 0:02:55]}  d6 {[%clk 0:02:57]} 6. Nc3 {[%clk 0:02:53]}  e5 {[%clk 0:02:57]} 7. d3 {[%clk 0:02:53]}  Nc6 {[%clk 0:02:57]} 8. Rb1 {[%clk 0:02:53]}  h6 {[%clk 0:02:57]} 9. b4 {[%clk 0:02:51]}  Be6 {[%clk 0:02:48]} 10. b5 {[%clk 0:02:51]}  Ne7 {[%clk 0:02:32]} 11. a4 {[%clk 0:02:50]}  Qd7 {[%clk 0:02:31]} 12. Ba3 {[%clk 0:02:48]}  Bh3 {[%clk 0:02:18]} 13. e4 {[%clk 0:02:31]}  Bxg2 {[%clk 0:02:09]} 14. Kxg2 {[%clk 0:02:32]}  Nh7 {[%clk 0:01:53]} 15. Nd2 {[%clk 0:02:08]}  f5 {[%clk 0:01:51]} 16. f3 {[%clk 0:02:04]}  Ng5 {[%clk 0:01:33]} 17. Qe2 {[%clk 0:02:01]}  Rf7 {[%clk 0:01:18]} 18. Nd5 {[%clk 0:01:45]}  Ne6 {[%clk 0:01:02]} 19. Nb3 {[%clk 0:01:44]}  b6 {[%clk 0:00:55]} 20. a5 {[%clk 0:01:24]}  Raf8 {[%clk 0:00:54]} 21. axb6 {[%clk 0:01:21]}  axb6 {[%clk 0:00:55]} 22. Nxe7+ {[%clk 0:01:21]}  Qxe7 {[%clk 0:00:51]} 23. Bb2 {[%clk 0:01:16]}  Qg5 {[%clk 0:00:41]} 24. Kh1 {[%clk 0:01:13]}  Qh5 {[%clk 0:00:40]} 25. Nd2 {[%clk 0:01:13]}  Ng5 {[%clk 0:00:26]} 26. Kg2 {[%clk 0:01:04]}  Qh3+ {[%clk 0:00:25]} 27. Kg1 {[%clk 0:01:00]}  Qh5 {[%clk 0:00:25]} 28. Kg2 {[%clk 0:00:56]}  Qh3+ {[%clk 0:00:25]} 29. Kh1 {[%clk 0:00:53]}  Qh5 {[%clk 0:00:21]} 30. Qg2 {[%clk 0:00:34]}  fxe4 {[%clk 0:00:10]} 31. fxe4 {[%clk 0:00:34]}  Qg4 {[%clk 0:00:10]} 32. Rxf7 {[%clk 0:00:30]}  Rxf7 {[%clk 0:00:11]} 33. Rf1 {[%clk 0:00:30]}  Rxf1+ {[%clk 0:00:10]} 34. Qxf1 {[%clk 0:00:29]}  Ne6 {[%clk 0:00:08]} 35. Qf3 {[%clk 0:00:27]}  Qxf3+ {[%clk 0:00:07]} 36. Nxf3 {[%clk 0:00:28]}  Nc5 {[%clk 0:00:08]} 37. Ne1 {[%clk 0:00:28]}  Bf6 {[%clk 0:00:08]} 38. Ba3 {[%clk 0:00:28]}  Ne6 {[%clk 0:00:08]} 39. Kg2 {[%clk 0:00:26]}  Bg5 {[%clk 0:00:08]} 40. h4 {[%clk 0:00:26]}  Bd2 {[%clk 0:00:08]} 41. Nf3 {[%clk 0:00:26]}  Be3 {[%clk 0:00:09]} 42. Bb2 {[%clk 0:00:23]}  Nc5 {[%clk 0:00:08]} 43. Ne1 {[%clk 0:00:21]}  Bd2 {[%clk 0:00:08]} 44. Nf3 {[%clk 0:00:21]}  Nxd3 {[%clk 0:00:09]} 45. Bxe5 {[%clk 0:00:18]}  Nxe5 {[%clk 0:00:08]} 46. Nxd2 {[%clk 0:00:18]}  Kf7 {[%clk 0:00:08]} 47. Kf2 {[%clk 0:00:18]}  Ke6 {[%clk 0:00:08]} 48. Ke3 {[%clk 0:00:19]}  g5 {[%clk 0:00:08]} 49. hxg5 {[%clk 0:00:18]}  hxg5 {[%clk 0:00:09]} 50. Kd4 {[%clk 0:00:19]}  Nd7 {[%clk 0:00:07]} 51. Nb1 {[%clk 0:00:18]}  Ne5 {[%clk 0:00:07]} 52. Nc3 {[%clk 0:00:18]}  Kf6 {[%clk 0:00:07]} 53. Nd5+ {[%clk 0:00:18]}  Kg6 {[%clk 0:00:07]} 54. Nxc7 {[%clk 0:00:19]}  g4 {[%clk 0:00:04]} 55. Ne8 {[%clk 0:00:17]}  Nf7 {[%clk 0:00:03]} 56. Kd5 {[%clk 0:00:17]}  Ng5 {[%clk 0:00:02]} 57. Nxd6 {[%clk 0:00:17]}  Nf3 {[%clk 0:00:02]} 58. c5 {[%clk 0:00:17]}  bxc5 {[%clk 0:00:00]} 59. b6 {[%clk 0:00:18]} 1-0


[Site "https://www.chess.com"]

[Event "Titled Tuesday Blitz August 1 Early 2023"]
[White "NovozhilovSemen"]
[Black "Krzyzanowski, Marcin"]
[BlackFideId "1132199"]
[WhiteElo "2570"]
[BlackElo "2782"]
[Result "0-1"]
[Round "3"]
[TimeControl "180+1"]
[Date "2023.08.01"]
[WhiteClock "0:00:29"]
[BlackClock "0:00:36"]
[Board "41"]

1. d4 {[%clk 0:03:00]}  Nf6 {[%clk 0:02:59]} 2. Nf3 {[%clk 0:02:59]}  g6 {[%clk 0:02:59]} 3. Nc3 {[%clk 0:02:59]}  d5 {[%clk 0:02:55]} 4. Bf4 {[%clk 0:02:59]}  Bg7 {[%clk 0:02:52]} 5. e3 {[%clk 0:02:58]}  O-O {[%clk 0:02:49]} 6. Be2 {[%clk 0:02:57]}  a6 {[%clk 0:02:36]} 7. Ne5 {[%clk 0:02:50]}  c5 {[%clk 0:02:35]} 8. O-O {[%clk 0:02:48]}  cxd4 {[%clk 0:02:29]} 9. exd4 {[%clk 0:02:47]}  Nc6 {[%clk 0:02:30]} 10. Nxc6 {[%clk 0:02:47]}  bxc6 {[%clk 0:02:31]} 11. Na4 {[%clk 0:02:48]}  Ne4 {[%clk 0:02:27]} 12. f3 {[%clk 0:02:45]}  Nd6 {[%clk 0:02:23]} 13. c3 {[%clk 0:02:42]}  f6 {[%clk 0:02:20]} 14. Nc5 {[%clk 0:02:35]}  e5 {[%clk 0:02:19]} 15. Be3 {[%clk 0:02:35]}  Re8 {[%clk 0:02:16]} 16. Bf2 {[%clk 0:02:35]}  e4 {[%clk 0:02:00]} 17. fxe4 {[%clk 0:02:23]}  Nxe4 {[%clk 0:01:51]} 18. Nxe4 {[%clk 0:02:22]}  dxe4 {[%clk 0:01:52]} 19. Be3 {[%clk 0:02:20]}  f5 {[%clk 0:01:49]} 20. Qa4 {[%clk 0:02:18]}  Bd7 {[%clk 0:01:43]} 21. Rad1 {[%clk 0:02:17]}  Kh8 {[%clk 0:01:38]} 22. Kh1 {[%clk 0:02:08]}  g5 {[%clk 0:01:35]} 23. Bh5 {[%clk 0:01:54]}  Rf8 {[%clk 0:01:24]} 24. g3 {[%clk 0:01:52]}  f4 {[%clk 0:01:09]} 25. Bg1 {[%clk 0:01:32]}  e3 {[%clk 0:01:05]} 26. Rde1 {[%clk 0:01:23]}  Be6 {[%clk 0:01:00]} 27. Bf3 {[%clk 0:01:22]}  Bd5 {[%clk 0:01:00]} 28. c4 {[%clk 0:01:09]}  Bxf3+ {[%clk 0:00:56]} 29. Rxf3 {[%clk 0:01:10]}  Qxd4 {[%clk 0:00:56]} 30. Qxc6 {[%clk 0:01:09]}  Rad8 {[%clk 0:00:50]} 31. h4 {[%clk 0:01:01]}  Qd2 {[%clk 0:00:48]} 32. Rb1 {[%clk 0:00:50]}  e2 {[%clk 0:00:45]} 33. Bf2 {[%clk 0:00:33]}  Qd1+ {[%clk 0:00:42]} 34. Rxd1 {[%clk 0:00:33]}  exd1=Q+ {[%clk 0:00:43]} 35. Kg2 {[%clk 0:00:29]}  fxg3 {[%clk 0:00:36]} 0-1


[Site "https://www.chess.com"]

[Event "Titled Tuesday Blitz August 1 Early 2023"]
[White "Gorovets, Andrey"]
[Black "Demin, Vladimir"]
[WhiteFideId "13504037"]
[BlackFideId "4167457"]
[WhiteElo "2773"]
[BlackElo "2560"]
[Result "0-1"]
[Round "3"]
[TimeControl "180+1"]
[Date "2023.08.01"]
[WhiteClock "0:00:00"]
[BlackClock "0:00:10"]
[Board "43"]

1. Nf3 {[%clk 0:02:58]}  Nf6 {[%clk 0:02:59]} 2. g3 {[%clk 0:02:58]}  d5 {[%clk 0:02:58]} 3. d4 {[%clk 0:02:57]}  e6 {[%clk 0:02:58]} 4. c4 {[%clk 0:02:56]}  Be7 {[%clk 0:02:58]} 5. Nc3 {[%clk 0:02:55]}  O-O {[%clk 0:02:55]} 6. Bg2 {[%clk 0:02:56]}  dxc4 {[%clk 0:02:53]} 7. Ne5 {[%clk 0:02:55]}  Nc6 {[%clk 0:02:53]} 8. Bxc6 {[%clk 0:02:55]}  bxc6 {[%clk 0:02:53]} 9. Nxc6 {[%clk 0:02:56]}  Qe8 {[%clk 0:02:54]} 10. Nxe7+ {[%clk 0:02:56]}  Qxe7 {[%clk 0:02:55]} 11. Qa4 {[%clk 0:02:57]}  Nd5 {[%clk 0:02:51]} 12. Qxc4 {[%clk 0:02:19]}  a5 {[%clk 0:02:50]} 13. Bd2 {[%clk 0:02:19]}  Ba6 {[%clk 0:02:45]} 14. Qc5 {[%clk 0:02:18]}  Qd7 {[%clk 0:02:39]} 15. Rc1 {[%clk 0:02:15]}  Rfb8 {[%clk 0:02:09]} 16. b3 {[%clk 0:02:11]}  h6 {[%clk 0:01:19]} 17. Nxd5 {[%clk 0:02:06]}  exd5 {[%clk 0:01:19]} 18. Qxc7 {[%clk 0:01:33]}  Qg4 {[%clk 0:01:15]} 19. O-O {[%clk 0:01:24]}  Bxe2 {[%clk 0:01:10]} 20. Rfe1 {[%clk 0:01:23]}  g5 {[%clk 0:01:03]} 21. h3 {[%clk 0:01:15]}  Qh5 {[%clk 0:01:01]} 22. Qe5 {[%clk 0:00:32]}  Bf3 {[%clk 0:00:28]} 23. Rc3 {[%clk 0:00:30]}  Re8 {[%clk 0:00:19]} 24. Qxe8+ {[%clk 0:00:24]}  Rxe8 {[%clk 0:00:20]} 25. Rxe8+ {[%clk 0:00:24]}  Kg7 {[%clk 0:00:20]} 26. Ree3 {[%clk 0:00:20]}  Be4 {[%clk 0:00:17]} 27. g4 {[%clk 0:00:16]}  Qg6 {[%clk 0:00:17]} 28. f3 {[%clk 0:00:15]}  Bb1 {[%clk 0:00:15]} 29. a3 {[%clk 0:00:14]}  Qd6 {[%clk 0:00:14]} 30. Re5 {[%clk 0:00:12]}  Qxa3 {[%clk 0:00:13]} 31. f4 {[%clk 0:00:11]}  Qb2 {[%clk 0:00:13]} 32. Re2 {[%clk 0:00:10]}  Bd3 {[%clk 0:00:12]} 33. Rf2 {[%clk 0:00:08]}  Qb1+ {[%clk 0:00:10]} 34. Kh2 {[%clk 0:00:08]}  Be4 {[%clk 0:00:10]} 35. fxg5 {[%clk 0:00:08]}  Qh1+ {[%clk 0:00:10]} 36. Kg3 {[%clk 0:00:00]}  Qg1+ {[%clk 0:00:10]} 0-1


[Site "https://www.chess.com"]

[Event "Titled Tuesday Blitz August 1 Early 2023"]
[White "Malka, Samuel"]
[Black "Kushko, Dmitriy"]
[WhiteFideId "20643675"]
[BlackFideId "14162261"]
[WhiteElo "2558"]
[BlackElo "2770"]
[Result "0-1"]
[Round "3"]
[TimeControl "180+1"]
[Date "2023.08.01"]
[WhiteClock "0:00:05"]
[BlackClock "0:00:15"]
[Board "44"]

1. d4 {[%clk 0:03:00]}  g6 {[%clk 0:02:59]} 2. c4 {[%clk 0:02:59]}  Bg7 {[%clk 0:02:59]} 3. e4 {[%clk 0:02:59]}  d6 {[%clk 0:02:59]} 4. Nc3 {[%clk 0:02:58]}  e5 {[%clk 0:03:00]} 5. Nge2 {[%clk 0:02:41]}  Nc6 {[%clk 0:02:59]} 6. Be3 {[%clk 0:02:34]}  Nh6 {[%clk 0:02:59]} 7. d5 {[%clk 0:02:13]}  Ne7 {[%clk 0:02:58]} 8. f3 {[%clk 0:01:57]}  f5 {[%clk 0:02:58]} 9. Qd2 {[%clk 0:01:55]}  Nf7 {[%clk 0:02:58]} 10. h4 {[%clk 0:01:52]}  O-O {[%clk 0:02:51]} 11. h5 {[%clk 0:01:50]}  c5 {[%clk 0:02:42]} 12. hxg6 {[%clk 0:01:37]}  hxg6 {[%clk 0:02:42]} 13. g3 {[%clk 0:01:32]}  a6 {[%clk 0:02:36]} 14. a4 {[%clk 0:01:30]}  Bd7 {[%clk 0:02:20]} 15. Bh3 {[%clk 0:01:27]}  b5 {[%clk 0:01:39]} 16. axb5 {[%clk 0:01:26]}  axb5 {[%clk 0:01:40]} 17. Rxa8 {[%clk 0:01:21]}  Qxa8 {[%clk 0:01:41]} 18. Nxb5 {[%clk 0:01:09]}  Qa4 {[%clk 0:01:35]} 19. Nec3 {[%clk 0:00:50]}  Qxc4 {[%clk 0:01:29]} 20. Bf1 {[%clk 0:00:50]}  Qb4 {[%clk 0:01:25]} 21. Qh2 {[%clk 0:00:51]}  Ra8 {[%clk 0:01:18]} 22. Qh7+ {[%clk 0:00:49]}  Kf8 {[%clk 0:01:18]} 23. Nxd6 {[%clk 0:00:29]}  Qxb2 {[%clk 0:01:05]} 24. Nxf7 {[%clk 0:00:19]}  Qxc3+ {[%clk 0:00:41]} 25. Kf2 {[%clk 0:00:19]}  Ra2+ {[%clk 0:00:32]} 26. Be2 {[%clk 0:00:19]}  Bb5 {[%clk 0:00:24]} 27. Re1 {[%clk 0:00:15]}  Kxf7 {[%clk 0:00:24]} 28. d6 {[%clk 0:00:14]}  Qd3 {[%clk 0:00:18]} 29. dxe7 {[%clk 0:00:01]}  Rxe2+ {[%clk 0:00:18]} 30. Rxe2 {[%clk 0:00:01]}  Qxe2+ {[%clk 0:00:18]} 31. Kg1 {[%clk 0:00:01]}  Qxe3+ {[%clk 0:00:19]} 32. Kg2 {[%clk 0:00:02]}  Qe2+ {[%clk 0:00:17]} 33. Kh1 {[%clk 0:00:02]}  Qxf3+ {[%clk 0:00:17]} 34. Kg1 {[%clk 0:00:02]}  Qf1+ {[%clk 0:00:15]} 35. Kh2 {[%clk 0:00:03]}  Qf2+ {[%clk 0:00:15]} 36. Kh3 {[%clk 0:00:02]}  Bf1+ {[%clk 0:00:15]} 37. Kh4 {[%clk 0:00:02]}  Qh2+ {[%clk 0:00:14]} 38. Kg5 {[%clk 0:00:03]}  Qxh7 {[%clk 0:00:15]} 39. e8=Q+ {[%clk 0:00:04]}  Kxe8 {[%clk 0:00:15]} 40. g4 {[%clk 0:00:05]}  Qh6# {[%clk 0:00:15]} 0-1


[Site "https://www.chess.com"]

[Event "Titled Tuesday Blitz August 1 Early 2023"]
[White "Perez, Maximiliano"]
[Black "Tristan, Leonardo"]
[WhiteFideId "117234"]
[BlackFideId "113816"]
[WhiteElo "2543"]
[BlackElo "2768"]
[Result "0-1"]
[Round "3"]
[TimeControl "180+1"]
[Date "2023.08.01"]
[WhiteClock "0:00:00"]
[BlackClock "0:00:14"]
[Board "45"]

1. e4 {[%clk 0:03:00]}  d5 {[%clk 0:02:59]} 2. exd5 {[%clk 0:03:00]}  Qxd5 {[%clk 0:03:00]} 3. Nc3 {[%clk 0:03:00]}  Qa5 {[%clk 0:03:00]} 4. d4 {[%clk 0:02:59]}  Nf6 {[%clk 0:03:01]} 5. Bc4 {[%clk 0:02:59]}  Bg4 {[%clk 0:03:00]} 6. Ne2 {[%clk 0:02:58]}  Nc6 {[%clk 0:02:59]} 7. f3 {[%clk 0:02:46]}  Be6 {[%clk 0:02:59]} 8. Bxe6 {[%clk 0:02:40]}  fxe6 {[%clk 0:03:00]} 9. Qd3 {[%clk 0:02:26]}  O-O-O {[%clk 0:02:58]} 10. Qc4 {[%clk 0:02:26]}  e5 {[%clk 0:02:24]} 11. Be3 {[%clk 0:02:19]}  exd4 {[%clk 0:02:18]} 12. Nxd4 {[%clk 0:02:20]}  Nxd4 {[%clk 0:02:16]} 13. Bxd4 {[%clk 0:02:20]}  e5 {[%clk 0:02:01]} 14. Be3 {[%clk 0:02:18]}  Bb4 {[%clk 0:01:31]} 15. O-O {[%clk 0:02:06]}  Bxc3 {[%clk 0:01:24]} 16. bxc3 {[%clk 0:02:07]}  Nd5 {[%clk 0:01:23]} 17. Bd2 {[%clk 0:02:01]}  Rd6 {[%clk 0:01:07]} 18. Rad1 {[%clk 0:01:43]}  Kb8 {[%clk 0:00:59]} 19. Qg4 {[%clk 0:01:30]}  g6 {[%clk 0:00:58]} 20. c4 {[%clk 0:01:29]}  Qc5+ {[%clk 0:00:54]} 21. Kh1 {[%clk 0:01:26]}  Nb6 {[%clk 0:00:53]} 22. Bh6 {[%clk 0:01:05]}  Qxc4 {[%clk 0:00:50]} 23. Rde1 {[%clk 0:00:37]}  Re8 {[%clk 0:00:40]} 24. Qg5 {[%clk 0:00:27]}  a6 {[%clk 0:00:39]} 25. Rf2 {[%clk 0:00:24]}  Qxa2 {[%clk 0:00:37]} 26. h4 {[%clk 0:00:23]}  Qa5 {[%clk 0:00:35]} 27. Rfe2 {[%clk 0:00:21]}  Nc4 {[%clk 0:00:30]} 28. Re4 {[%clk 0:00:19]}  Qd5 {[%clk 0:00:25]} 29. Bg7 {[%clk 0:00:18]}  Rde6 {[%clk 0:00:20]} 30. f4 {[%clk 0:00:10]}  Nd6 {[%clk 0:00:17]} 31. Rxe5 {[%clk 0:00:10]}  Rxe5 {[%clk 0:00:17]} 32. fxe5 {[%clk 0:00:09]}  Nf5 {[%clk 0:00:15]} 33. Bf6 {[%clk 0:00:08]}  Qc4 {[%clk 0:00:15]} 34. Kh2 {[%clk 0:00:03]}  Re6 {[%clk 0:00:14]} 35. Kh3 {[%clk 0:00:00]}  Qc3+ {[%clk 0:00:14]} 0-1


[Site "https://www.chess.com"]

[Event "Titled Tuesday Blitz August 1 Early 2023"]
[White "Al Mukhaini, Shima"]
[Black "Xu, Yi"]
[WhiteFideId "22005854"]
[BlackFideId "8605564"]
[WhiteElo "2406"]
[BlackElo "2755"]
[Result "1-0"]
[Round "3"]
[TimeControl "180+1"]
[Date "2023.08.01"]
[WhiteClock "0:01:20"]
[BlackClock "0:00:03"]
[Board "49"]

1. e4 {[%clk 0:02:59]}  c5 {[%clk 0:02:59]} 2. Nf3 {[%clk 0:02:58]}  d6 {[%clk 0:02:58]} 3. d4 {[%clk 0:02:59]}  cxd4 {[%clk 0:02:58]} 4. Nxd4 {[%clk 0:02:59]}  Nf6 {[%clk 0:02:59]} 5. Nc3 {[%clk 0:03:00]}  a6 {[%clk 0:02:59]} 6. Bg5 {[%clk 0:02:57]}  Nbd7 {[%clk 0:02:59]} 7. f4 {[%clk 0:02:56]}  h6 {[%clk 0:02:36]} 8. Bxf6 {[%clk 0:02:52]}  gxf6 {[%clk 0:02:05]} 9. Qf3 {[%clk 0:02:51]}  h5 {[%clk 0:02:01]} 10. O-O-O {[%clk 0:02:50]}  Bh6 {[%clk 0:02:02]} 11. Kb1 {[%clk 0:02:49]}  Qa5 {[%clk 0:01:44]} 12. Nf5 {[%clk 0:02:45]}  Nc5 {[%clk 0:01:35]} 13. Bc4 {[%clk 0:02:34]}  Nxe4 {[%clk 0:01:31]} 14. Bxf7+ {[%clk 0:02:14]}  Kxf7 {[%clk 0:01:20]} 15. Nxh6+ {[%clk 0:02:14]}  Rxh6 {[%clk 0:01:19]} 16. Qxe4 {[%clk 0:02:09]}  Qf5 {[%clk 0:00:41]} 17. Qe3 {[%clk 0:02:01]}  Be6 {[%clk 0:00:27]} 18. Rhe1 {[%clk 0:01:57]}  Rc8 {[%clk 0:00:27]} 19. g3 {[%clk 0:01:54]}  b5 {[%clk 0:00:24]} 20. a3 {[%clk 0:01:53]}  a5 {[%clk 0:00:23]} 21. Qa7 {[%clk 0:01:41]}  b4 {[%clk 0:00:20]} 22. axb4 {[%clk 0:01:39]}  axb4 {[%clk 0:00:20]} 23. Rxd6 {[%clk 0:01:40]}  bxc3 {[%clk 0:00:19]} 24. Rdxe6 {[%clk 0:01:39]}  Qxe6 {[%clk 0:00:15]} 25. Rxe6 {[%clk 0:01:38]}  Kxe6 {[%clk 0:00:16]} 26. f5+ {[%clk 0:01:28]}  Kd6 {[%clk 0:00:10]} 27. Qd4+ {[%clk 0:01:20]}  Kc6 {[%clk 0:00:08]} 28. Qxc3+ {[%clk 0:01:20]}  Kd7 {[%clk 0:00:03]} 29. Qd2+ {[%clk 0:01:20]} 1-0


[Site "https://www.chess.com"]

[Event "Titled Tuesday Blitz August 1 Early 2023"]
[White "Matinian, Nikita"]
[Black "Begunov, Konstantin"]
[WhiteFideId "24129100"]
[BlackFideId "4118510"]
[WhiteElo "2745"]
[BlackElo "2400"]
[Result "1-0"]
[Round "3"]
[TimeControl "180+1"]
[Date "2023.08.01"]
[WhiteClock "0:00:32"]
[BlackClock "0:00:00"]
[Board "50"]

1. e4 {[%clk 0:03:00]}  c5 {[%clk 0:02:54]} 2. Nf3 {[%clk 0:02:57]}  d6 {[%clk 0:02:54]} 3. d4 {[%clk 0:02:57]}  cxd4 {[%clk 0:02:54]} 4. Nxd4 {[%clk 0:02:58]}  Nf6 {[%clk 0:02:54]} 5. Nc3 {[%clk 0:02:59]}  a6 {[%clk 0:02:55]} 6. h3 {[%clk 0:02:58]}  b5 {[%clk 0:02:52]} 7. a4 {[%clk 0:02:56]}  bxa4 {[%clk 0:02:49]} 8. Rxa4 {[%clk 0:02:53]}  Bb7 {[%clk 0:02:48]} 9. Bg5 {[%clk 0:02:51]}  Nbd7 {[%clk 0:02:21]} 10. Bxf6 {[%clk 0:02:36]}  Nxf6 {[%clk 0:02:16]} 11. Bc4 {[%clk 0:02:34]}  e6 {[%clk 0:02:09]} 12. Qe2 {[%clk 0:02:28]}  Qb6 {[%clk 0:02:04]} 13. O-O {[%clk 0:02:11]}  Be7 {[%clk 0:01:38]} 14. Bxe6 {[%clk 0:02:10]}  fxe6 {[%clk 0:01:28]} 15. Nxe6 {[%clk 0:02:11]}  Kf7 {[%clk 0:01:02]} 16. Qc4 {[%clk 0:02:10]}  d5 {[%clk 0:00:52]} 17. exd5 {[%clk 0:02:10]}  Rhc8 {[%clk 0:00:46]} 18. Ng5+ {[%clk 0:01:34]}  Kf8 {[%clk 0:00:28]} 19. Qa2 {[%clk 0:01:25]}  Rxc3 {[%clk 0:00:19]} 20. bxc3 {[%clk 0:01:17]}  Bxd5 {[%clk 0:00:19]} 21. Nxh7+ {[%clk 0:01:12]}  Kf7 {[%clk 0:00:16]} 22. Ng5+ {[%clk 0:01:11]}  Kg6 {[%clk 0:00:15]} 23. c4 {[%clk 0:01:12]}  Bxg2 {[%clk 0:00:11]} 24. Kxg2 {[%clk 0:01:09]}  Kxg5 {[%clk 0:00:12]} 25. Re1 {[%clk 0:01:01]}  Qc6+ {[%clk 0:00:12]} 26. f3 {[%clk 0:01:02]}  Bc5 {[%clk 0:00:11]} 27. Ra5 {[%clk 0:00:45]}  Nh5 {[%clk 0:00:11]} 28. Re5+ {[%clk 0:00:43]}  Kf6 {[%clk 0:00:10]} 29. Raxc5 {[%clk 0:00:38]}  Nf4+ {[%clk 0:00:10]} 30. Kg3 {[%clk 0:00:37]}  Ne2+ {[%clk 0:00:10]} 31. Kf2 {[%clk 0:00:37]}  Qd6 {[%clk 0:00:03]} 32. Kxe2 {[%clk 0:00:32]}  Rd8 {[%clk 0:00:00]} 33. Rcd5 {[%clk 0:00:32]} 1-0


[Site "https://www.chess.com"]

[Event "Titled Tuesday Blitz August 1 Early 2023"]
[White "Weetik, Vjacheslav"]
[Black "Prydun, Andriy"]
[WhiteFideId "4153472"]
[BlackFideId "14145898"]
[WhiteElo "2742"]
[BlackElo "2359"]
[Result "1-0"]
[Round "3"]
[TimeControl "180+1"]
[Date "2023.08.01"]
[WhiteClock "0:00:18"]
[BlackClock "0:00:00"]
[Board "51"]

1. d4 {[%clk 0:02:58]}  Nf6 {[%clk 0:02:36]} 2. c4 {[%clk 0:02:58]}  e6 {[%clk 0:02:36]} 3. g3 {[%clk 0:02:58]}  d5 {[%clk 0:02:21]} 4. Nf3 {[%clk 0:02:58]}  Be7 {[%clk 0:02:22]} 5. Bg2 {[%clk 0:02:58]}  O-O {[%clk 0:02:23]} 6. O-O {[%clk 0:02:58]}  Nbd7 {[%clk 0:02:23]} 7. Nc3 {[%clk 0:02:56]}  c6 {[%clk 0:02:22]} 8. Qd3 {[%clk 0:02:51]}  b6 {[%clk 0:02:22]} 9. e4 {[%clk 0:02:50]}  Ba6 {[%clk 0:02:23]} 10. b3 {[%clk 0:02:51]}  c5 {[%clk 0:02:23]} 11. e5 {[%clk 0:02:16]}  Ne8 {[%clk 0:02:22]} 12. Rd1 {[%clk 0:02:15]}  Nc7 {[%clk 0:01:35]} 13. Qc2 {[%clk 0:01:51]}  Rc8 {[%clk 0:01:22]} 14. dxc5 {[%clk 0:01:46]}  Bxc5 {[%clk 0:01:17]} 15. Ng5 {[%clk 0:01:28]}  g6 {[%clk 0:01:17]} 16. Bf4 {[%clk 0:01:24]}  Qe7 {[%clk 0:01:12]} 17. h4 {[%clk 0:01:16]}  dxc4 {[%clk 0:00:48]} 18. Nce4 {[%clk 0:01:14]}  cxb3 {[%clk 0:00:44]} 19. axb3 {[%clk 0:01:13]}  Bb5 {[%clk 0:00:11]} 20. Rxa7 {[%clk 0:01:07]}  Nd5 {[%clk 0:00:10]} 21. Rxd5 {[%clk 0:00:49]}  exd5 {[%clk 0:00:09]} 22. Nf6+ {[%clk 0:00:48]}  Kg7 {[%clk 0:00:10]} 23. Qd2 {[%clk 0:00:30]}  h6 {[%clk 0:00:09]} 24. Ngh7 {[%clk 0:00:27]}  g5 {[%clk 0:00:07]} 25. hxg5 {[%clk 0:00:27]}  Rfd8 {[%clk 0:00:04]} 26. gxh6+ {[%clk 0:00:20]}  Kh8 {[%clk 0:00:04]} 27. Ng5 {[%clk 0:00:21]}  Ra8 {[%clk 0:00:03]} 28. Nxd5 {[%clk 0:00:18]}  Qf8 {[%clk 0:00:02]} 29. Rxa8 {[%clk 0:00:17]}  Rxa8 {[%clk 0:00:00]} 30. Nc7 {[%clk 0:00:18]} 1-0


[Site "https://www.chess.com"]